fUSD/lending_fUSD_20250525
["ID","MTS","AMOUNT","RATE_DAILY","PERIOD"]
[362312829,1748184633767,-457.98311898,0.00019999,2]
[362312830,1748184633778,-420.0,0.00019999,2]
[362312831,1748184633789,-420.0,0.00019999,2]
[362312832,1748184633800,-420.0,0.00019999,2]
[362312833,1748184633811,-282.62887847,0.00019999,2]
[362312834,1748184633821,-420.0,0.00019999,2]
[362312835,1748184633831,-420.0,0.00019999,2]
[362312836,1748184633842,-420.0,0.00019999,2]
[362312837,1748184633852,-423.1,0.00019999,2]
[362312838,1748184633862,-420.0,0.00019999,2]
[362312839,1748184633873,-420.0,0.00019999,2]
[362312840,1748184633883,-420.0,0.00019999,2]
[362312841,1748184633894,-420.0,0.00019999,2]
[362312842,1748184633904,-241.6,0.00019999,2]
[362312843,1748184633916,-420.0,0.00019999,2]
[362312844,1748184633926,-420.0,0.00019999,2]
[362312845,1748184633936,-420.0,0.00019999,2]
[362312846,1748184633947,-420.0,0.00019999,2]
[362312847,1748184633957,-420.0,0.00019999,2]
[362312848,1748184633967,-420.0,0.00019999,2]
[362312849,1748184633980,-420.0,0.00019999,2]
[362312850,1748184633991,-229.47,0.00019999,2]
[362312851,1748184634001,-420.0,0.00019999,2]
[362312852,1748184634012,-420.0,0.00019999,2]
[362312853,1748184634023,-420.0,0.00019999,2]
[362312854,1748184634034,-420.0,0.00019999,2]
[362312855,1748184634044,-420.0,0.00019999,2]
[362312856,1748184634056,-420.0,0.00019999,2]
[362312857,1748184634067,-310.58,0.00019999,2]
[362312858,1748184634077,-420.0,0.00019999,2]
[362312859,1748184634088,-420.0,0.00019999,2]
[362312860,1748184634098,-285.01,0.00019999,2]
[362312861,1748184634109,-420.0,0.00019999,2]
[362312862,1748184634119,-420.0,0.00019999,2]
[362312863,1748184634129,-420.0,0.00019999,2]
[362312864,1748184634140,-420.0,0.00019999,2]
[362312865,1748184634150,-398.68,0.00019999,2]
[362312866,1748184634160,-420.0,0.00019999,2]
[362312867,1748184634171,-420.0,0.00019999,2]
[362312868,1748184634181,-420.0,0.00019999,2]
[362312869,1748184634192,-420.0,0.00019999,2]
[362312870,1748184634202,-420.0,0.00019999,2]
[362312871,1748184634212,-519.42,0.00019999,2]
[362312872,1748184634223,-420.0,0.00019999,2]
[362312873,1748184634233,-516.67,0.00019999,2]
[362312874,1748184634243,-420.0,0.00019999,2]
[362312875,1748184634254,-420.0,0.00019999,2]
[362312876,1748184634263,-420.0,0.00019999,2]
[362312877,1748184634274,-420.0,0.00019999,2]
[362312878,1748184634284,-420.0,0.00019999,2]
[362312879,1748184634295,-420.0,0.00019999,2]
[362312880,1748184634307,-420.0,0.00019999,2]
[362312881,1748184634317,-420.0,0.00019999,2]
[362312882,1748184634327,-420.0,0.00019999,2]
[362312883,1748184634338,-420.0,0.00019999,2]
[362312884,1748184634348,-420.0,0.00019999,2]
[362312885,1748184634358,-420.0,0.00019999,2]
[362312886,1748184634369,-420.0,0.00019999,2]
[362312887,1748184634379,-420.0,0.00019999,2]
[362312888,1748184634389,-435.32747524,0.00019999,2]
[362312889,1748184634400,-420.0,0.00019999,2]
[362312890,1748184634410,-414.06570249,0.00019999,2]
[362312891,1748184634420,-420.0,0.00019999,2]
[362312892,1748184634430,-420.0,0.00019999,2]
[362312893,1748184634440,-420.0,0.00019999,2]
[362312894,1748184634451,-420.0,0.00019999,2]
[362312895,1748184634461,-420.0,0.00019999,2]
[362312896,1748184634471,-150.0,0.00019999,2]
[362312897,1748184634482,-420.0,0.00019999,2]
[362312898,1748184634492,-150.0,0.00019999,2]
[362312899,1748184634502,-420.0,0.00019999,2]
[362312900,1748184634512,-20000.0,0.00019999,2]
[362312901,1748184634522,-154.0,0.0002,2]
[362312902,1748184634533,-4054.0,0.0002,2]
[362312903,1748184634543,-1152.0,0.0002,2]
[362312904,1748184634554,-150.175,0.0002,2]
[362312905,1748184634565,-182.03118462,0.0002,2]
[362312906,1748184634575,-250849.43696209,0.0002,2]
[362312910,1748184638019,-420.0,0.00019999,2]
[362312911,1748184638028,-420.0,0.00019999,2]
[362312912,1748184638038,-420.0,0.00019999,2]
[362312913,1748184638048,-294.86182,0.00019999,2]
[362312914,1748184638063,-125.13818,0.00019999,2]
[362312915,1748184638073,-349.75182005,0.00019999,2]
[362312916,1748184638084,-70.24817995,0.00019999,2]
[362312917,1748184638094,-2626.56632005,0.0002,2]
[362312918,1748184638107,-357030.53347352,0.0002,2]
[362312926,1748184640006,-420.0,0.00019999,2]
[362312927,1748184640016,-21548.00000003,0.0002,2]
[362312928,1748184640031,-158643.09423591,0.0002,2]
[362312929,1748184640042,-293281.04438868,0.0002,2]
[362312934,1748184644880,-499.99,0.00019998,2]
[362312935,1748184644893,-500.0,0.00019998,2]
[362312936,1748184644902,-80789.21739411,0.0002,2]
[362312937,1748184644916,-209864.46036711,0.0002,2]
[362312954,1748184648452,-151.0,0.00019669,2]
[362312955,1748184648462,-62677.52008405,0.0002,2]
[362312956,1748184648495,-53609.20451872,0.0002,2]
[362312957,1748184648505,-50000.0,0.0002,2]
[362312958,1748184648514,-1000.0,0.0002,2]
[362312959,1748184648524,-150.0,0.0002,2]
[362312960,1748184648534,-150.0,0.0002,2]
[362312961,1748184648544,-211.184703,0.0002,2]
[362312962,1748184648553,-891.41540531,0.0002,2]
[362312963,1748184648563,-607812.38171302,0.0002,2]
[362312964,1748184648575,-25783.8020675,0.0002,2]
[362312965,1748184648587,-1951.87629267,0.0002,2]
[362312966,1748184648599,-1089.81367169,0.0002,2]
[362312967,1748184648610,-3067.6893764,0.0002,2]
[362312968,1748184648626,-719867.20604839,0.0002,2]
[362312969,1748184671266,204.0,0.00017981,2]
[362312970,1748184767679,544.29,0.00025815,120]
[362312971,1748185049596,-187.6178665,0.00018396,2]
[362312972,1748185055830,-176.6381465,0.00018396,2]
[362312973,1748185055853,-114.54773018,0.00018489,2]
[362312974,1748185066068,-190.31111579,0.00018489,2]
[362312975,1748185070081,-293.30670899,0.00018489,2]
[362312976,1748185072465,-213.65002,0.00018489,2]
[362312977,1748185080038,-325.5242035,0.00018489,2]
[362312978,1748185085862,-331.24594984,0.00018489,2]
[362312979,1748185088103,-286.1859419,0.00018489,2]
[362312980,1748185333359,195.97,0.00021945,30]
[362312981,1748185408061,500.22,0.00013699,2]
[362312983,1748185630110,-210.52740881,0.00018,2]
[362312984,1748185631136,-140.59826419,0.00018,2]
[362312985,1748185631158,-200.0,0.00018011,2]
[362312986,1748185631177,-321.77,0.00018016,2]
[362312987,1748185631198,-199.43491195,0.00018023,2]
[362312988,1748185638121,-390.93058647,0.00018023,2]
[362312989,1748185652091,-1835.10721692,0.00018023,2]
[362312990,1748185657237,-1396.63728466,0.00018023,2]
[362312991,1748185657263,-200.0,0.00018024,2]
[362312992,1748185657287,-250.0,0.00018024,2]
[362312993,1748185657312,-1200.0,0.00018047,2]
[362312994,1748185657335,-3630.4,0.00018048,2]
[362312995,1748185657360,-300.0,0.00018162,2]
[362312996,1748185657384,-200.0,0.00018163,2]
[362312997,1748185657406,-250.0,0.00018273,2]
[362312998,1748185657428,-2572.96271534,0.0001832,2]
[362312999,1748185658191,-1164.10728466,0.0001832,2]
[362313000,1748185658214,-200.0,0.00018322,2]
[362313001,1748185658236,-898.57846478,0.00018352,2]
[362313002,1748185658258,-200.0,0.00018353,2]
[362313003,1748185658281,-7537.31425056,0.00018359,2]
[362313004,1748185658956,-4879.65251412,0.00018359,2]
[362313005,1748185658978,-500.0,0.00018365,2]
[362313006,1748185659000,-500.0,0.00018365,2]
[362313007,1748185659022,-500.0,0.00018365,2]
[362313008,1748185659044,-500.0,0.00018365,2]
[362313009,1748185659065,-500.0,0.00018365,2]
[362313010,1748185659086,-385.70506435,0.00018365,2]
[362313011,1748185659108,-507.46178726,0.00018365,2]
[362313012,1748185659129,-500.0,0.00018365,2]
[362313013,1748185659149,-500.0,0.00018365,2]
[362313014,1748185659172,-500.0,0.00018365,2]
[362313015,1748185659193,-227.18063427,0.00018365,2]
[362313016,1748185659577,-272.81936573,0.00018365,2]
[362313017,1748185659599,-213.2131412,0.00018365,2]
[362313018,1748185659622,-372.84,0.00018366,2]
[362313019,1748185659644,-9141.12749307,0.00018366,2]
[362313020,1748185662205,-1872.85250693,0.00018366,2]
[362313021,1748185662229,-2245.2283298,0.00018489,2]
[362313022,1748185662252,-5881.91916327,0.00018497,2]
[362313023,1748185662770,-10000.0,0.00018497,2]
[362313024,1748185664919,-3542.40083673,0.00018497,2]
[362313025,1748185679328,-200.0,0.0001851,2]
[362313026,1748185679351,-500.0,0.000186,2]
[362313027,1748185679373,-500.32442298,0.000186,2]
[362313028,1748185679396,-6086.2972,0.00018636,2]
[362313029,1748185679418,-2713.37837702,0.00018672,2]
[362313030,1748185681405,-1353.03162298,0.00018672,2]
[362313031,1748185681429,-8646.96837702,0.00018692,2]
[362313032,1748185694267,-210.0,0.00018483,2]
[362313033,1748185694292,-200.0,0.00018555,2]
[362313034,1748185694323,-200.0,0.00018622,2]
[362313035,1748185694349,-300.0,0.00018671,2]
[362313036,1748185694373,-9090.0,0.00018692,2]
[362313037,1748185744893,-150.0,0.00018142,7]
[362313038,1748185744915,-500.0,0.00018143,2]
[362313039,1748185744938,-155.0,0.00018692,2]
[362313040,1748185744960,-430.80162298,0.00018692,2]
[362313044,1748185809217,658.34,0.0002492,120]
[362313045,1748185809438,658.34,0.00027186,120]
[362313046,1748185832012,-658.34,0.00018124,2]
[362313047,1748185832022,-246.82,0.00018127,2]
[362313048,1748185832032,-558.15,0.00018157,2]
[362313049,1748185832042,-515.3452015,0.00018166,2]
[362313050,1748185832335,-484.6547985,0.00018166,2]
[362313051,1748185832344,-580.37,0.00018701,2]
[362313052,1748185832356,-498.64,0.00018703,2]
[362313053,1748185832367,-163.68,0.00018705,2]
[362313054,1748185832379,-580.37,0.00018706,2]
[362313055,1748185832389,-580.37,0.00018711,2]
[362313056,1748185832398,-580.37,0.00018716,2]
[362313057,1748185832409,-580.37,0.00018721,2]
[362313058,1748185832422,-580.37,0.00018726,2]
[362313059,1748185832436,-580.37,0.00018731,2]
[362313060,1748185832447,-580.37,0.00018736,2]
[362313061,1748185832457,-580.37,0.00018741,2]
[362313062,1748185832467,-1200.0,0.00018745,2]
[362313063,1748185832476,-580.37,0.00018746,2]
[362313064,1748185832485,-332.5879864,0.0001875,2]
[362313065,1748185832660,-169.58289113,0.0001875,2]
[362313067,1748185832670,-580.37,0.00018751,2]
[362313068,1748185832679,-580.37,0.00018756,2]
[362313069,1748185832688,-300.0,0.0001876,2]
[362313070,1748185832697,-226.02282199,0.00018761,2]
[362313071,1748185832708,-354.34717801,0.00018761,2]
[362313072,1748185832717,-580.37,0.00018765,2]
[362313073,1748185832726,-580.37,0.0001877,2]
[362313074,1748185832735,-544.29,0.00018774,2]
[362313076,1748185832744,-580.37,0.00018775,2]
[362313077,1748185832753,-580.37,0.0001878,2]
[362313078,1748185832762,-580.37,0.00018785,2]
[362313079,1748185832770,-580.37,0.0001879,2]
[362313080,1748185832779,-580.37,0.00018795,2]
[362313081,1748185832788,-593.73508595,0.000188,2]
[362313082,1748185832825,-1505.11732357,0.000188,2]
[362313083,1748185832836,-82.39409792,0.000188,2]
[362313084,1748185832846,-189.66,0.000188,2]
[362313085,1748185832856,-172.56,0.00018806,2]
[362313086,1748185832865,-151.0,0.00018999,2]
[362313087,1748185832875,-151.0,0.00018999,2]
[362313088,1748185832884,-1199.20597015,0.00018999,2]
[362313089,1748185832894,-151.0,0.00018999,2]
[362313090,1748185832903,-668.65185757,0.00018999,2]
[362313091,1748185832912,-668.65185757,0.00018999,2]
[362313092,1748185832922,-207.4,0.00018999,2]
[362313093,1748185832932,-233.59718526,0.00018999,2]
[362313099,1748185838548,-338.41280921,0.00018999,2]
[362313100,1748185838558,-194.31,0.00019,2]
[362313101,1748185838567,-194.31,0.00019,2]
[362313102,1748185838577,-194.31,0.00019,2]
[362313103,1748185838586,-194.31,0.00019,2]
[362313104,1748185838595,-194.31,0.00019,2]
[362313105,1748185838605,-209.03719079,0.00019,2]
[362313106,1748185839462,-488.97868113,0.00019,2]
[362313107,1748185839471,-150.0,0.00019029,2]
[362313108,1748185839481,-150.0,0.00019057,2]
[362313109,1748185839491,-831.40274819,0.00019073,2]
[362313110,1748185839502,-300.0,0.00019091,2]
[362313111,1748185839511,-4530.26,0.00019092,2]
[362313112,1748185839522,-200.0,0.000191,2]
[362313113,1748185839531,-151.0,0.00019178,2]
[362313114,1748185839542,-174.79,0.00019178,2]
[362313115,1748185839552,-155.0,0.0001924,2]
[362313116,1748185839562,-150.0,0.00019296,2]
[362313117,1748185839571,-165.43,0.00019401,2]
[362313118,1748185839581,-150.0,0.00019455,2]
[362313119,1748185839592,-151.0,0.00019457,2]
[362313120,1748185839603,-300.0,0.00019484,2]
[362313121,1748185839612,-160.0,0.000195,2]
[362313122,1748185839623,-200.0,0.0001951,2]
[362313123,1748185839633,-151.0,0.00019547,2]
[362313124,1748185839643,-693.3919763,0.00019547,2]
[362313125,1748185839654,-150.0,0.00019575,2]
[362313126,1748185839663,-150.0,0.00019576,2]
[362313127,1748185839673,-2076.127,0.00019599,2]
[362313128,1748185839683,-489.582007,0.00019599,2]
[362313129,1748185839692,-357.02368236,0.00019599,2]
[362313130,1748185839702,-153.96722937,0.00019599,2]
[362313131,1748185839712,-318.0001,0.000196,2]
[362313132,1748185839723,-3944.943,0.000196,2]
[362313133,1748185839733,-1000.0,0.000196,2]
[362313134,1748185839744,-2500.0,0.000196,2]
[362313135,1748185839753,-3234.5644433,0.00019603,2]
[362313136,1748185839763,-150.0,0.00019605,2]
[362313137,1748185839774,-150.0,0.00019609,2]
[362313138,1748185839785,-3234.56444328,0.00019636,2]
[362313139,1748185839795,-150.0,0.00019637,2]
[362313140,1748185839807,-3234.56444328,0.00019669,2]
[362313141,1748185839818,-420.0,0.00019699,2]
[362313142,1748185839827,-420.0,0.00019699,2]
[362313143,1748185839837,-420.0,0.00019699,2]
[362313144,1748185839847,-420.0,0.00019699,2]
[362313145,1748185839857,-420.0,0.00019699,2]
[362313146,1748185839868,-400.91783018,0.00019699,2]
[362313149,1748185839877,-420.0,0.00019699,2]
[362313150,1748185839887,-420.0,0.00019699,2]
[362313151,1748185839898,-422.1917251,0.00019699,2]
[362313152,1748185839908,-424.88510342,0.00019699,2]
[362313153,1748185839918,-500.0,0.00019699,2]
[362313154,1748185839928,-420.0,0.00019699,2]
[362313155,1748185839938,-420.0,0.00019699,2]
[362313157,1748185839947,-143209.29402522,0.000197,2]
[362313159,1748185839957,-3234.56444328,0.00019702,2]
[362313161,1748185839966,-156.587,0.00019726,2]
[362313163,1748185839976,-150.0,0.00019727,2]
[362313165,1748185839986,-150.0,0.00019732,2]
[362313167,1748185839995,-3234.56444328,0.00019735,2]
[362313169,1748185840005,-150.0,0.00019737,2]
[362313171,1748185840014,-150.0,0.00019739,2]
[362313173,1748185840023,-150.0,0.00019758,2]
[362313175,1748185840033,-150.0,0.00019763,2]
[362313177,1748185840042,-3234.56444328,0.00019768,2]
[362313179,1748185840052,-150.0,0.00019769,2]
[362313182,1748185840061,-150.0,0.00019777,2]
[362313184,1748185840071,-155.0,0.00019788,2]
[362313186,1748185840080,-150.0,0.0001979,2]
[362313187,1748185840090,-500.0,0.00019798,2]
[362313189,1748185840099,-500.0,0.00019798,2]
[362313191,1748185840110,-500.0,0.00019798,2]
[362313193,1748185840119,-9352.16420079,0.00019799,2]
[362313195,1748185840128,-162.19272833,0.00019799,2]
[362313197,1748185840138,-4684.06,0.00019799,2]
[362313199,1748185840147,-200.0,0.000198,2]
[362313201,1748185840158,-200.0,0.000198,2]
[362313203,1748185840167,-250.0,0.000198,2]
[362313205,1748185840177,-3234.56444328,0.00019801,2]
[362313207,1748185840186,-150.0,0.00019808,2]
[362313208,1748185840195,-420.0,0.00019809,2]
[362313210,1748185840204,-420.0,0.00019809,2]
[362313212,1748185840213,-420.0,0.00019809,2]
[362313213,1748185840223,-420.0,0.00019809,2]
[362313214,1748185840232,-420.0,0.00019809,2]
[362313215,1748185840241,-420.0,0.00019809,2]
[362313216,1748185840251,-175.03372909,0.00019809,2]
[362313217,1748185840260,-420.0,0.00019809,2]
[362313218,1748185840269,-420.0,0.00019809,2]
[362313219,1748185840278,-429.5926494,0.00019809,2]
[362313220,1748185840287,-420.0,0.00019809,2]
[362313221,1748185840297,-420.0,0.00019809,2]
[362313222,1748185840306,-420.0,0.00019809,2]
[362313223,1748185840315,-420.0,0.00019809,2]
[362313224,1748185840324,-420.0,0.00019809,2]
[362313225,1748185840334,-420.0,0.00019809,2]
[362313226,1748185840343,-420.0,0.00019809,2]
[362313227,1748185840352,-420.0,0.00019809,2]
[362313228,1748185840361,-420.0,0.00019809,2]
[362313229,1748185840372,-420.0,0.00019809,2]
[362313230,1748185840384,-420.0,0.00019809,2]
[362313232,1748185840393,-420.0,0.00019809,2]
[362313233,1748185840403,-420.0,0.00019809,2]
[362313234,1748185840414,-420.0,0.00019809,2]
[362313235,1748185840424,-420.0,0.00019809,2]
[362313236,1748185840435,-269.468569,0.00019809,2]
[362313237,1748185840444,-420.0,0.00019809,2]
[362313238,1748185840454,-552.47598728,0.00019809,2]
[362313239,1748185840463,-420.0,0.00019809,2]
[362313240,1748185840474,-420.0,0.00019809,2]
[362313241,1748185840486,-195.17094552,0.00019809,2]
[362313242,1748185840499,-420.0,0.00019809,2]
[362313243,1748185840508,-420.0,0.00019809,2]
[362313244,1748185840517,-331.62062,0.0001981,2]
[362313245,1748185840526,-420.0,0.0001981,2]
[362313246,1748185840535,-420.0,0.0001981,2]
[362313247,1748185840545,-420.0,0.0001981,2]
[362313248,1748185840554,-420.0,0.0001981,2]
[362313249,1748185840563,-420.0,0.0001981,2]
[362313250,1748185840572,-420.0,0.0001981,2]
[362313251,1748185840581,-420.0,0.0001981,2]
[362313252,1748185840590,-420.0,0.0001981,2]
[362313253,1748185840599,-500.0,0.0001981,2]
[362313254,1748185840609,-420.0,0.0001981,2]
[362313255,1748185840618,-420.0,0.0001981,2]
[362313256,1748185840627,-420.0,0.0001981,2]
[362313257,1748185840636,-420.0,0.0001981,2]
[362313258,1748185840646,-420.0,0.0001981,2]
[362313259,1748185840655,-420.0,0.0001981,2]
[362313260,1748185840664,-420.0,0.0001981,2]
[362313261,1748185840673,-420.0,0.0001981,2]
[362313262,1748185840682,-420.0,0.0001981,2]
[362313263,1748185840691,-420.0,0.0001981,2]
[362313264,1748185840701,-519.53913246,0.0001981,2]
[362313265,1748185840710,-420.0,0.0001981,2]
[362313266,1748185840719,-420.0,0.0001981,2]
[362313267,1748185840728,-420.0,0.0001981,2]
[362313268,1748185840737,-420.0,0.0001981,2]
[362313269,1748185840746,-420.0,0.0001981,2]
[362313270,1748185840755,-420.0,0.0001981,2]
[362313271,1748185840764,-420.0,0.0001981,2]
[362313272,1748185840773,-420.0,0.0001981,2]
[362313273,1748185840782,-420.0,0.0001981,2]
[362313274,1748185840791,-420.0,0.0001981,2]
[362313275,1748185840801,-420.0,0.0001981,2]
[362313276,1748185840810,-420.0,0.0001981,2]
[362313277,1748185840819,-420.0,0.0001981,2]
[362313278,1748185840828,-420.0,0.0001981,2]
[362313279,1748185840837,-420.0,0.0001981,2]
[362313280,1748185840846,-9352.16420072,0.0001981,2]
[362313281,1748185840855,-162.1927283,0.00019813,2]
[362313282,1748185840865,-150.0,0.00019819,2]
[362313283,1748185840874,-9352.16420072,0.00019821,2]
[362313284,1748185840883,-162.1927283,0.00019828,2]
[362313285,1748185840893,-150.0,0.00019831,2]
[362313286,1748185840903,-9352.16420072,0.00019833,2]
[362313287,1748185840912,-150.0,0.00019834,2]
[362313288,1748185840921,-3234.56444328,0.00019834,2]
[362313289,1748185840931,-150.0,0.00019835,2]
[362313290,1748185840940,-200.0,0.0001984,2]
[362313291,1748185840950,-162.1927283,0.00019842,2]
[362313292,1748185840959,-150.0,0.00019843,2]
[362313293,1748185840968,-9352.16420072,0.00019844,2]
[362313294,1748185840977,-150.0,0.00019853,2]
[362313295,1748185840986,-9352.16420072,0.00019855,2]
[362313296,1748185840996,-162.1927283,0.00019857,2]
[362313297,1748185841005,-150.0,0.00019858,2]
[362313298,1748185841014,-9352.16420072,0.00019866,2]
[362313299,1748185841023,-3234.56444328,0.00019867,2]
[362313300,1748185841033,-881.0,0.00019869,2]
[362313301,1748185841042,-6838.011,0.00019869,2]
[362313302,1748185841051,-913.635,0.00019869,2]
[362313303,1748185841060,-154.0,0.00019869,2]
[362313304,1748185841069,-4052.0,0.00019869,2]
[362313305,1748185841079,-162.1927283,0.00019871,2]
[362313306,1748185841088,-500.0,0.00019873,2]
[362313307,1748185841097,-500.0,0.00019873,2]
[362313308,1748185841106,-9352.16420072,0.00019878,2]
[362313309,1748185841115,-162.1927283,0.00019886,2]
[362313310,1748185841125,-9352.16420072,0.00019889,2]
[362313311,1748185841134,-150.0,0.00019895,2]
[362313312,1748185841143,-424.61471224,0.00019895,2]
[362313313,1748185841153,-419.13892977,0.00019895,2]
[362313314,1748185841162,-420.0,0.00019895,2]
[362313315,1748185841171,-316.99385029,0.00019895,2]
[362313316,1748185841181,-420.0,0.00019895,2]
[362313317,1748185841190,-420.0,0.00019895,2]
[362313318,1748185841199,-429.58986086,0.00019895,2]
[362313319,1748185841208,-388.97000128,0.00019895,2]
[362313320,1748185841219,-426.38839626,0.00019895,2]
[362313321,1748185841230,-420.0,0.00019895,2]
[362313322,1748185841240,-420.0,0.00019895,2]
[362313323,1748185841249,-420.0,0.00019895,2]
[362313324,1748185841258,-420.0,0.00019895,2]
[362313325,1748185841269,-420.0,0.00019895,2]
[362313326,1748185841280,-420.0,0.00019895,2]
[362313327,1748185841291,-420.0,0.00019895,2]
[362313328,1748185841301,-420.0,0.00019895,2]
[362313329,1748185841312,-420.0,0.00019895,2]
[362313330,1748185841322,-420.0,0.00019895,2]
[362313331,1748185841332,-420.0,0.00019895,2]
[362313332,1748185841342,-420.0,0.00019895,2]
[362313333,1748185841352,-420.0,0.00019895,2]
[362313334,1748185841362,-420.0,0.00019895,2]
[362313335,1748185841376,-420.0,0.00019895,2]
[362313336,1748185841385,-420.0,0.00019895,2]
[362313337,1748185841395,-420.0,0.00019895,2]
[362313338,1748185841407,-423.29349983,0.00019895,2]
[362313339,1748185841418,-420.0,0.00019895,2]
[362313340,1748185841428,-420.0,0.00019895,2]
[362313341,1748185841439,-420.0,0.00019895,2]
[362313342,1748185841450,-420.0,0.00019895,2]
[362313343,1748185841461,-433.79441793,0.00019895,2]
[362313344,1748185841472,-420.0,0.00019895,2]
[362313345,1748185841483,-420.0,0.00019895,2]
[362313346,1748185841494,-420.0,0.00019895,2]
[362313347,1748185841505,-420.0,0.00019895,2]
[362313348,1748185841515,-420.0,0.00019895,2]
[362313349,1748185841528,-420.0,0.00019895,2]
[362313350,1748185841538,-420.05958693,0.00019895,2]
[362313351,1748185841548,-420.0,0.00019895,2]
[362313352,1748185841558,-420.0,0.00019895,2]
[362313353,1748185841567,-552.66781943,0.00019895,2]
[362313354,1748185841578,-420.0,0.00019895,2]
[362313355,1748185841588,-427.68968085,0.00019895,2]
[362313356,1748185841598,-420.0,0.00019895,2]
[362313357,1748185841607,-443.15165052,0.00019895,2]
[362313358,1748185841617,-420.0,0.00019895,2]
[362313359,1748185841627,-432.14427336,0.00019895,2]
[362313360,1748185841826,-424.18032587,0.00019895,2]
[362313361,1748185841835,-420.0,0.00019895,2]
[362313362,1748185841845,-467.63336199,0.00019895,2]
[362313363,1748185841855,-420.0,0.00019895,2]
[362313364,1748185841864,-420.0,0.00019895,2]
[362313365,1748185841874,-266.19115063,0.00019895,2]
[362313366,1748185841883,-420.0,0.00019895,2]
[362313367,1748185841893,-420.0,0.00019895,2]
[362313368,1748185841903,-437.9444823,0.00019895,2]
[362313369,1748185841912,-432.56045042,0.00019895,2]
[362313370,1748185841922,-420.0,0.00019895,2]
[362313371,1748185841933,-420.0,0.00019895,2]
[362313372,1748185841942,-420.0,0.00019895,2]
[362313373,1748185841952,-420.0,0.00019895,2]
[362313374,1748185841961,-420.0,0.00019895,2]
[362313375,1748185841971,-420.0,0.00019895,2]
[362313376,1748185841981,-420.0,0.00019895,2]
[362313377,1748185841990,-420.0,0.00019895,2]
[362313378,1748185842000,-420.0,0.00019895,2]
[362313379,1748185842009,-433.44202843,0.00019895,2]
[362313380,1748185842019,-420.0,0.00019895,2]
[362313381,1748185842028,-420.0,0.00019895,2]
[362313382,1748185842038,-420.0,0.00019895,2]
[362313383,1748185842047,-420.0,0.00019895,2]
[362313384,1748185842056,-430.66626646,0.00019895,2]
[362313385,1748185842067,-420.0,0.00019895,2]
[362313386,1748185842076,-473.14611456,0.00019895,2]
[362313387,1748185842086,-420.0,0.00019895,2]
[362313388,1748185842095,-438.08625338,0.00019895,2]
[362313389,1748185842105,-434.85307406,0.00019895,2]
[362313390,1748185842115,-420.0,0.00019895,2]
[362313391,1748185842124,-420.0,0.00019895,2]
[362313392,1748185842133,-420.0,0.00019895,2]
[362313393,1748185842143,-487.44849483,0.00019895,2]
[362313394,1748185842153,-423.97634684,0.00019895,2]
[362313395,1748185842162,-420.0,0.00019895,2]
[362313396,1748185842172,-461.57756302,0.00019895,2]
[362313397,1748185842182,-540.9238856,0.00019895,2]
[362313398,1748185842192,-420.0,0.00019895,2]
[362313399,1748185842201,-443.07591121,0.00019895,2]
[362313400,1748185842211,-434.67330594,0.00019895,2]